bitfinex-derivatives/quotes_SOLF0:USTF0_20250114
["timestamp","ask_amount","ask_price","bid_price","bid_amount"]
[1736836563568,7.9675738,186.7,186.65,7.9675738]
[1736836564768,2.6799,186.68,186.65,7.9675738]
[1736836568673,5.01951835,186.72,186.67,7.9675738]
[1736836568879,5.01951835,186.73,186.7,7.9675738]
[1736836569078,5.01951835,186.73,186.72,7.9675738]
[1736836569368,148.70019746,186.74,186.72,7.9675738]
[1736836569975,226.19511927,186.78,186.72,7.9675738]
[1736836569976,2.6787,186.76,186.72,7.9675738]
[1736836570171,156.66777126,186.78,186.72,7.9675738]
[1736836571065,2.6785,186.77,186.72,7.9675738]
[1736836571874,2.6785,186.77,186.74,7.9675738]
[1736836573175,2.6785,186.77,186.61,1.5893]
[1736836573176,2.6783,186.79,186.76,7.9675738]
[1736836574681,7.69255163,186.81,186.78,7.9675738]
[1736836574874,2.678,186.81,186.78,7.9675738]
[1736836577273,2.678,186.81,186.74,2.6789]
[1736836577479,2.6784,186.78,186.75,7.9675738]
[1736836578379,2.6784,186.78,186.71,2.6793]
[1736836578680,2.6784,186.78,186.74,7.9675738]
[1736836579080,10.6457738,186.79,186.74,7.9675738]
[1736836579581,2.6782,186.79,186.74,7.9675738]
[1736836580572,2.6782,186.79,186.76,7.9675738]
[1736836582882,10.6457738,186.79,186.74,7.9675738]
[1736836585078,2.6782,186.79,186.74,7.9675738]
[1736836585279,2.6782,186.79,186.76,7.9675738]
[1736836585675,10.6457738,186.79,186.74,7.9675738]
[1736836585879,2.6784,186.78,186.74,7.9675738]
[1736836587584,2.6784,186.78,186.76,7.9675738]
[1736836587785,2.678,186.81,186.76,7.9675738]
[1736836587982,2.678,186.81,186.79,7.9675738]
[1736836590480,64.57720314,186.88,186.79,7.9675738]
[1736836590694,2.6778,186.82,186.79,7.9675738]
[1736836591193,5.42,186.87,186.79,7.9675738]
[1736836591390,7.9675738,186.85,186.79,7.9675738]
[1736836592194,2.6778,186.82,186.79,7.9675738]
[1736836592495,7.9675738,186.81,186.69,4.8117]
[1736836592694,7.9675738,186.81,186.75,7.9675738]
[1736836594095,2.6782,186.79,186.75,7.9675738]
[1736836594391,7.9675738,186.77,186.7,7.9675738]
[1736836594594,7.9675738,186.72,186.67,5.48136779]
[1736836594791,7.9675738,186.68,186.6,4.6589]
[1736836595096,7.9675738,186.68,186.63,7.9675738]
[1736836595595,2.6799,186.67,186.63,7.9675738]
[1736836596691,2.6801,186.66,186.63,7.9675738]
[1736836599796,5.42,186.73,186.63,7.9675738]
[1736836599997,7.9675738,186.7,186.63,7.9675738]
[1736836600693,2.6798,186.68,186.63,7.9675738]
[1736836602305,2.6799,186.67,186.63,7.9675738]
[1736836604703,9.5929738,186.69,186.63,7.9675738]
[1736836605605,2.6799,186.67,186.63,7.9675738]
[1736836607003,2.6802,186.66,186.63,7.9675738]
[1736836608301,7.9675738,186.65,186.57,2.6814]
[1736836608494,7.9675738,186.65,186.5,191.0]
[1736836608495,7.9675738,186.65,186.6,7.9675738]
[1736836608699,7.9675738,186.65,186.48,96.7941]
[1736836608900,7.9675738,186.65,186.58,7.9675738]
[1736836609399,7.9675738,186.65,186.6,7.9675738]
[1736836610604,2.6807,186.62,186.6,7.9675738]
[1736836612300,7.9675738,186.63,186.48,96.7941]
[1736836612505,5.42,186.66,186.48,96.7941]
[1736836612506,7.9675738,186.61,186.56,7.9675738]
[1736836613596,2.6811,186.59,186.56,7.9675738]
[1736836614003,5.42,186.66,186.58,7.9675738]
[1736836614204,5.42,186.66,186.48,96.7941]
[1736836614205,2.6805,186.63,186.6,7.9675738]
[1736836614804,2.6804,186.64,186.6,7.9675738]
[1736836615205,2.6804,186.64,186.62,7.9675738]
[1736836618203,2.6804,186.64,186.58,2.6812]
[1736836618609,2.6804,186.64,186.6,7.9675738]
[1736836620105,2.6801,186.66,186.62,7.9675738]
[1736836620813,8.12,186.67,186.64,7.9675738]
[1736836621614,2.6801,186.66,186.62,7.9675738]
[1736836621809,5.44,186.67,186.62,7.9675738]
[1736836622909,2.6803,186.65,186.62,7.9675738]
[1736836623914,2.6801,186.66,186.62,7.9675738]
[1736836626215,7.9675738,186.66,186.6,7.9675738]
[1736836626917,2.6805,186.64,186.6,7.9675738]
[1736836628520,7.9675738,186.65,186.6,7.9675738]
[1736836630319,2.6805,186.63,186.6,7.9675738]
[1736836633121,7.9675738,186.65,186.56,4.3581]
[1736836633318,7.9675738,186.65,186.59,7.9675738]
[1736836633621,2.6806,186.63,186.59,7.9675738]
[1736836635422,7.9675738,186.65,186.59,7.9675738]
[1736836635719,2.6807,186.62,186.59,7.9675738]
[1736836638417,2.6808,186.61,186.59,7.9675738]
[1736836638622,7.9675738,186.63,186.57,7.9675738]
[1736836639525,2.6809,186.61,186.57,7.9675738]
[1736836640923,2.681,186.6,186.57,7.9675738]
[1736836641718,7.9675738,186.59,186.5,3.1693]
[1736836641923,2.6817,186.55,186.5,13.8190738]
[1736836642520,5.44,186.6,186.5,11.1368738]
[1736836642720,2.6812,186.59,186.5,3.1693]
[1736836643022,7.9675738,186.63,186.56,7.9675738]
[1736836643219,2.6809,186.61,186.56,10.6490738]
[1736836644020,2.6809,186.61,186.58,7.9675738]
[1736836644628,2.681,186.6,186.58,7.9675738]
[1736836644928,7.9675738,186.63,186.58,7.9675738]
[1736836645223,5.03471445,186.64,186.58,7.9675738]
[1736836645616,2.6805,186.63,186.58,7.9675738]
[1736836645822,2.6805,186.63,186.58,10.6486738]
[1736836646923,2.6805,186.63,186.6,7.9675738]
[1736836653528,1.6312,186.68,186.6,7.9675738]
[1736836653732,2.6802,186.66,186.62,7.9675738]
[1736836654326,2.6802,186.65,186.62,7.9675738]
[1736836655729,1.5956,186.71,186.64,10.6478738]
[1736836655928,1.5956,186.71,186.64,7.9675738]
[1736836656928,7.9675738,186.7,186.64,7.9675738]
[1736836657132,2.6799,186.68,186.64,7.9675738]
[1736836657322,5.03519619,186.72,186.63,2.6805]
[1736836657323,5.03519619,186.72,186.67,7.9675738]
[1736836657523,226.19511927,186.79,186.71,7.9675738]
[1736836657727,228.87331927,186.79,186.75,7.9675738]
[1736836658632,7.9675738,186.82,186.75,7.9675738]
[1736836658832,7.9675738,186.76,186.68,2.6798]
[1736836659134,16.12,186.83,186.66,4.8997]
[1736836659135,7.9675738,186.74,186.7,7.9675738]
[1736836661933,10.6464738,186.74,186.7,7.9675738]
[1736836662233,2.6789,186.74,186.7,7.9675738]
[1736836662434,2.6789,186.74,186.67,2.6799]
[1736836662635,2.6789,186.74,186.7,7.9675738]
[1736836662830,10.6464738,186.74,186.68,7.9675738]
[1736836663538,10.6464738,186.74,186.68,10.6473738]
[1736836663728,7.9675738,186.7,186.61,1.5775]
[1736836663931,5.42,186.77,186.61,1.5775]
[1736836663932,7.9675738,186.68,186.63,2.6805]
[1736836664136,7.9675738,186.68,186.61,1.5775]
[1736836664335,7.9675738,186.68,186.62,7.9675738]
[1736836665137,10.6473738,186.68,186.62,10.6481738]
[1736836667540,7.9675738,186.68,186.56,5.42]
[1736836667742,10.6477738,186.66,186.61,7.9675738]
[1736836669243,10.6477738,186.66,186.6,2.6808]
[1736836669448,5.42,186.7,186.61,7.9675738]
[1736836669637,10.6474738,186.68,186.63,7.9675738]
[1736836671650,1.6302,186.74,186.67,10.6474738]
[1736836671847,9.5977738,186.74,186.69,7.9675738]
[1736836672840,12.2768738,186.74,186.69,7.9675738]
[1736836675546,9.5977738,186.74,186.63,1.5754]
[1736836675746,2.6794,186.71,186.67,7.9675738]
[1736836675946,7.9675738,186.72,186.67,7.9675738]
[1736836676545,10.6467738,186.72,186.67,7.9675738]
[1736836678951,2.6794,186.71,186.67,7.9675738]
[1736836681951,10.6469738,186.71,186.67,7.9675738]
[1736836683248,7.9675738,186.79,186.72,2.6792]
[1736836683555,7.9675738,186.79,186.74,7.9675738]
[1736836684052,63.46748101,186.82,186.76,7.9675738]
[1736836684249,71.43505481,186.82,186.76,7.9675738]
[1736836684846,148.70019746,186.85,186.7,95.2206]
[1736836684847,148.70019746,186.85,186.81,7.9675738]
[1736836685043,412.07036609,186.86,186.81,7.9675738]
[1736836685044,148.70019746,186.87,186.81,7.9675738]
[1736836685248,148.70019746,186.87,186.83,7.9675738]
[1736836685555,148.70019746,186.87,186.8,12.38264386]
[1736836685751,148.70019746,186.87,186.83,12.38264386]
[1736836685952,148.70019746,186.94,186.83,12.38264386]
[1736836686154,2.6765,186.92,186.83,15.06014386]
[1736836689071,2.6765,186.91,186.83,15.06014386]
[1736836690444,2.6767,186.9,186.83,15.06014386]
[1736836693356,19.44594386,186.95,186.83,15.06014386]
[1736836693556,2.6768,186.89,186.83,15.06014386]
[1736836695251,2.6765,186.91,186.85,2.6773]
[1736836695450,2.6765,186.91,186.86,12.38264386]
[1736836697556,8.6708,186.97,186.86,12.38264386]
[1736836697755,2.6761,186.94,186.89,15.05934386]
[1736836698562,2.676,186.95,186.89,15.05934386]
[1736836700559,2.6762,186.94,186.89,12.38264386]
[1736836702161,12.38264386,186.97,186.86,12.38264386]
[1736836702362,12.38264386,186.97,186.85,1.6134]
[1736836702564,12.38264386,186.95,186.85,1.6134]
[1736836704066,2.6768,186.9,186.85,1.6134]
[1736836704464,12.38264386,186.95,186.85,1.6134]
[1736836705161,2.6769,186.88,186.84,12.38264386]
[1736836705462,17.82264386,186.93,186.82,18.29144386]
[1736836705764,17.82264386,186.93,186.82,12.38264386]
[1736836706970,2.6772,186.87,186.82,15.06044386]
[1736836707772,17.82264386,186.93,186.82,12.38264386]
[1736836707966,2.6773,186.86,186.82,12.38264386]
[1736836708361,17.82264386,186.93,186.82,12.38264386]
[1736836708561,1.5771,186.92,186.82,12.38264386]
[1736836709469,7.92591427,186.88,186.82,7.92591427]
[1736836710770,2.6775,186.84,186.8,7.92591427]
[1736836713565,2.6777,186.83,186.8,7.92591427]
[1736836714974,2.6777,186.83,186.78,36.27746849]
[1736836714975,2.6784,186.78,186.73,2.679]
[1736836715168,7.92591427,186.82,186.7,3.1556]
[1736836715371,7.92591427,186.82,186.76,7.92591427]
[1736836716173,7.92591427,186.8,186.74,7.92591427]
[1736836716875,2.6783,186.79,186.74,7.92591427]
[1736836717078,7.92591427,186.8,186.74,7.92591427]
[1736836717279,7.92591427,186.78,186.74,7.92591427]
[1736836717671,7.92591427,186.78,186.69,93.4721]
[1736836717672,5.44,186.83,186.76,7.92591427]
[1736836717867,5.44,186.83,186.79,7.92591427]
[1736836718378,2.6779,186.82,186.79,7.92591427]
[1736836718676,5.44,186.83,186.79,7.92591427]
[1736836719076,7.92591427,186.81,186.77,7.92591427]
[1736836719378,5.44,186.83,186.73,12.39264445]
[1736836719781,2.6782,186.8,186.73,15.07174445]
[1736836719979,5.44,186.83,186.73,12.39264445]
[1736836720380,12.39264445,186.81,186.7,12.39264445]
[1736836721177,2.6786,186.77,186.7,15.07214445]
[1736836722681,12.39264445,186.81,186.7,15.07214445]
[1736836722682,2.6787,186.76,186.7,15.07214445]
[1736836722879,12.39264445,186.81,186.7,12.39264445]
[1736836723583,12.39264445,186.81,186.71,2.6793]
[1736836724178,2.6786,186.77,186.71,2.6793]
[1736836726882,12.39264445,186.81,186.71,2.6793]
[1736836727088,2.6787,186.76,186.71,2.6793]
[1736836729384,17.83264445,186.81,186.71,2.6793]
[1736836729589,2.6788,186.75,186.71,2.6793]
[1736836730092,2.6789,186.74,186.7,15.07214445]
[1736836731492,17.83264445,186.81,186.7,12.39264445]
[1736836731689,17.83264445,186.81,186.69,91.86]
[1736836731690,12.39264445,186.78,186.69,91.86]
[1736836731890,4.9381,186.77,186.69,91.86]
[1736836732693,2.6792,186.73,186.69,91.86]
[1736836732891,164.82019746,186.88,186.7,12.39264445]
[1736836733091,4.29968713,186.85,186.76,12.39264445]
[1736836733395,3.3682,186.85,186.76,15.07124445]
[1736836733594,3.3682,186.85,186.79,12.39264445]
[1736836733897,6.0456,186.85,186.79,12.39264445]
[1736836734399,6.0456,186.85,186.76,12.39264445]
[1736836734400,2.6778,186.82,186.76,12.39264445]
[1736836734692,3.3682,186.85,186.76,15.07124445]
[1736836735495,2.6778,186.82,186.75,2.6788]
[1736836735687,2.6778,186.82,186.75,15.07144445]
[1736836736489,2.6778,186.82,186.76,2.6786]
[1736836738096,3.3682,186.85,186.75,12.39264445]
[1736836738297,15.76084445,186.85,186.75,12.39264445]
[1736836740505,2.6781,186.81,186.75,12.39264445]
[1736836741008,15.76084445,186.85,186.75,12.39264445]
[1736836741308,2.6784,186.78,186.73,7.93188188]
[1736836741606,10.61028188,186.78,186.73,7.93188188]
[1736836742197,2.6786,186.77,186.73,7.93188188]
[1736836743298,2.6786,186.77,186.69,106.93788536]
[1736836744706,2.6786,186.77,186.69,104.25838536]
[1736836745007,2.6786,186.77,186.7,2.6795]
[1736836745213,2.6788,186.75,186.69,104.25838536]
[1736836745507,3.2004,186.78,186.69,106.93798536]
[1736836745704,5.56,186.77,186.69,104.25838536]
[1736836747105,2.6789,186.74,186.69,104.25838536]
[1736836747909,2.6788,186.75,186.69,104.25838536]
[1736836748101,2.6788,186.75,186.69,106.93808536]
[1736836752310,1.6632,186.79,186.72,12.39838536]
[1736836752814,4.3416,186.79,186.72,15.07758536]
[1736836754013,1.6632,186.79,186.72,15.07758536]
[1736836754212,2.6784,186.78,186.72,15.07758536]
[1736836754818,2.6781,186.8,186.74,2.6788]
[1736836755014,3.189,186.83,186.75,12.39838536]
[1736836755807,2.6779,186.82,186.76,2.6786]
[1736836756417,3.189,186.83,186.75,12.39838536]
[1736836756617,2.6779,186.81,186.75,15.07718536]
[1736836759026,10.62284727,186.85,186.77,2.6785]
[1736836759323,5.02284727,186.85,186.78,12.39838536]
[1736836759514,148.70019746,186.87,186.81,12.39838536]
[1736836759924,10.5655,186.89,186.81,12.39838536]
[1736836759925,159.26569746,186.89,186.81,12.39838536]
[1736836760421,2.6771,186.88,186.81,15.07628536]
[1736836760629,2.6771,186.88,186.81,12.39838536]
[1736836762121,2.6772,186.87,186.81,12.39838536]
[1736836763229,65.87027155,186.91,186.81,12.39838536]
[1736836763429,2.6772,186.86,186.81,12.39838536]
[1736836764425,2.6772,186.86,186.8,2.678]
[1736836765331,2.6772,186.86,186.81,7.9267444]
[1736836769637,7.9267444,186.87,186.81,7.9267444]
[1736836769833,65.87027155,186.91,186.81,7.9267444]
[1736836769834,10.6041444,186.85,186.81,7.9267444]
[1736836770136,7.9267444,186.85,186.81,7.9267444]
[1736836770836,7.9267444,186.85,186.79,7.9267444]
[1736836771137,2.6777,186.83,186.79,7.9267444]
[1736836773234,65.87027155,186.91,186.79,7.9267444]
[1736836773439,7.9267444,186.86,186.79,7.9267444]
[1736836773938,2.6776,186.84,186.79,7.9267444]
[1736836778440,2.6776,186.84,186.81,7.9267444]
[1736836778938,10.6040444,186.86,186.81,7.9267444]
[1736836779934,2.6774,186.85,186.81,7.9267444]
[1736836785644,2.6774,186.85,186.79,2.6781]
[1736836785851,7.9267444,186.86,186.8,7.9267444]
[1736836785852,2.6775,186.84,186.8,7.9267444]
[1736836788850,7.9267444,186.86,186.8,7.9267444]
[1736836789549,2.6776,186.84,186.8,7.9267444]
[1736836790651,7.9267444,186.86,186.8,7.9267444]
[1736836790847,7.9267444,186.84,186.76,4.9611]
[1736836791147,7.9267444,186.82,186.71,4.68262942]
[1736836791346,2.6782,186.8,186.76,7.9267444]
[1736836791744,7.9267444,186.84,186.78,7.9267444]
[1736836792453,1.5728,186.86,186.78,7.9267444]
[1736836792750,5.52,186.86,186.82,7.9267444]
[1736836793346,8.1973,186.86,186.82,7.9267444]
[1736836793753,2.6773,186.86,186.82,7.9267444]
[1736836795249,2.6771,186.88,186.84,7.9267444]
[1736836795445,5.52,186.9,186.86,7.9267444]
[1736836796048,68.19701595,186.91,186.86,7.9267444]
[1736836796250,60.27027155,186.91,186.88,7.9267444]
[1736836796456,159.30314186,186.93,186.88,7.9267444]
[1736836797151,10.6029444,186.93,186.88,7.9267444]
[1736836799951,7.9267444,186.93,186.88,7.9267444]
[1736836800152,7.9267444,186.93,186.75,5.52]
[1736836800457,7.9267444,186.93,186.86,7.9267444]
[1736836800860,2.6765,186.91,186.86,7.9267444]
[1736836801154,7.9267444,186.93,186.86,7.9267444]
[1736836801349,2.6768,186.89,186.75,5.52]
[1736836801548,7.9267444,186.89,186.84,7.9267444]
[1736836801746,7.9267444,186.89,186.82,7.9267444]
[1736836801949,7.9267444,186.87,186.82,7.9267444]
[1736836802647,2.6772,186.86,186.82,7.9267444]
[1736836805553,5.03428197,186.93,186.84,7.9267444]
[1736836805554,2.677,186.88,186.84,7.9267444]
[1736836807552,2.6771,186.87,186.84,7.9267444]
[1736836807756,7.9267444,186.87,186.81,2.6778]
[1736836807961,7.9267444,186.87,186.82,7.9267444]
[1736836809060,2.6773,186.86,186.82,7.9267444]
[1736836809759,2.6773,186.86,186.84,7.9267444]
[1736836810362,2.677,186.88,186.84,7.9267444]
[1736836811460,2.677,186.88,186.73,5.52]
[1736836811461,10.6038444,186.87,186.73,5.52]
[1736836811662,7.9267444,186.87,186.82,7.9267444]
[1736836812057,2.6774,186.86,186.82,7.9267444]
[1736836812256,7.9267444,186.89,186.84,7.9267444]
[1736836812458,7.9267444,186.87,186.74,5.5]
[1736836812757,10.6041444,186.85,186.74,5.5]
[1736836812954,10.6041444,186.85,186.8,10.6046444]
[1736836815266,2.6775,186.84,186.8,10.6046444]
[1736836815460,2.6775,186.84,186.8,7.9267444]
[1736836815862,2.6775,186.84,186.8,10.6047444]
[1736836820072,2.6775,186.84,186.72,5.5]
[1736836820073,1.6706,186.89,186.82,7.9267444]
[1736836820267,2.6771,186.87,186.84,7.9267444]
[1736836825476,2.6773,186.86,186.84,7.9267444]
[1736836826470,2.6773,186.86,186.82,7.9267444]
[1736836830378,2.6775,186.84,186.82,7.9267444]
[1736836830578,7.9267444,186.84,186.73,121.17838954]
[1736836830772,7.9267444,186.84,186.79,7.9267444]
[1736836831176,2.6778,186.83,186.79,10.6048444]
[1736836831875,2.6778,186.83,186.81,7.9267444]
[1736836832578,2.6775,186.84,186.81,7.9267444]
[1736836834578,2.6774,186.85,186.81,7.9267444]
[1736836837075,7.9267444,186.86,186.79,7.9267444]
[1736836837275,7.9267444,186.82,186.73,121.17838954]
[1736836837475,7.9267444,186.82,186.77,7.9267444]
[1736836839081,2.6781,186.8,186.77,7.9267444]
[1736836840479,7.9267444,186.8,186.75,7.9267444]
[1736836842081,2.6784,186.78,186.75,7.9267444]
[1736836843585,7.9267444,186.8,186.75,7.9267444]
[1736836843885,2.6783,186.79,186.75,7.9267444]
[1736836847686,2.6784,186.78,186.75,7.9267444]
[1736836847887,7.9267444,186.8,186.73,29.31838954]
[1736836848188,2.6788,186.75,186.71,15.28867382]
[1736836848783,2.6788,186.75,186.71,12.60937382]
[1736836851088,2.6789,186.74,186.73,7.9267444]
[1736836851289,2.6789,186.74,186.72,7.9267444]
[1736836852684,4.8025,186.82,186.72,7.9267444]
[1736836852885,5.46,186.81,186.77,7.9267444]
[1736836853484,2.6783,186.79,186.77,7.9267444]
[1736836855190,2.6783,186.79,186.73,2.6789]
[1736836855489,2.6784,186.78,186.74,7.9267444]
[1736836855691,7.9267444,186.76,186.71,12.60937382]
[1736836856191,2.6788,186.75,186.71,12.60937382]
[1736836856997,2.679,186.74,186.71,4.68262942]
[1736836857192,2.679,186.74,186.7,7.9267444]
[1736836858291,5.46,186.81,186.72,7.9267444]
[1736836858495,7.9267444,186.79,186.74,7.9267444]
[1736836859085,10.6050444,186.79,186.74,10.6056444]
[1736836859892,5.46,186.81,186.76,10.6053444]
[1736836860990,8.138,186.81,186.76,7.9267444]
[1736836861892,2.678,186.81,186.78,7.9267444]
[1736836864094,2.678,186.81,186.76,7.9267444]
[1736836864592,2.6781,186.8,186.74,2.6789]
[1736836864788,2.6781,186.8,186.64,4.8446]
[1736836864789,7.9267444,186.77,186.64,4.8446]
[1736836864985,7.9267444,186.77,186.72,7.9267444]
[1736836866093,2.6787,186.76,186.72,7.9267444]
[1736836867095,10.6052444,186.77,186.72,10.6059444]
[1736836867395,2.6785,186.77,186.72,10.6059444]
[1736836867593,1.5422,186.81,186.76,7.9267444]
[1736836867789,11.2049444,186.82,186.76,7.9267444]
[1736836869102,2.678,186.81,186.76,10.6053444]
[1736836869797,1.6878,186.86,186.78,7.9267444]
[1736836870001,7.9267444,186.84,186.78,7.9267444]
[1736836870600,2.6778,186.83,186.78,7.9267444]
[1736836870897,7.9267444,186.84,186.77,7.9267444]
[1736836871097,7.9267444,186.82,186.75,7.9267444]
[1736836871399,5.46,186.85,186.75,7.9267444]
[1736836871400,2.6783,186.79,186.75,7.9267444]
[1736836871898,7.9267444,186.8,186.75,7.9267444]
[1736836872490,10.6048444,186.8,186.75,10.6055444]
[1736836873397,2.6779,186.82,186.77,10.6052444]
[1736836876897,201.95524682,186.93,186.81,7.9267444]
[1736836877104,13.3867444,186.88,186.83,7.9267444]
[1736836877304,13.3867444,186.88,186.81,7.9267444]
[1736836877598,2.6773,186.86,186.81,10.6046444]
[1736836879404,2.6771,186.87,186.82,2.6778]
[1736836881803,2.6771,186.87,186.81,7.9267444]
[1736836882001,2.6771,186.87,186.81,10.6046444]
[1736836883999,7.9267444,186.86,186.81,10.6046444]
[1736836884295,10.6040444,186.86,186.81,7.9267444]
[1736836884500,7.9267444,186.86,186.81,7.9267444]
[1736836885000,2.6775,186.84,186.81,7.9267444]
[1736836885205,7.9267444,186.86,186.81,7.9267444]
[1736836885903,2.6774,186.85,186.81,7.9267444]
[1736836886397,2.6772,186.86,186.83,7.9267444]
[1736836886606,1.5908,186.93,186.85,7.9267444]
[1736836886808,1.5908,186.93,186.87,7.9267444]
[1736836887205,51.38102051,186.94,186.89,7.9267444]
[1736836887513,7.9267444,186.93,186.87,7.9267444]
[1736836888506,10.6029444,186.93,186.87,10.6037444]
[1736836889407,10.6029444,186.93,186.87,7.9267444]
[1736836891804,2.6762,186.93,186.87,7.9267444]
[1736836892004,10.6029444,186.93,186.87,7.9267444]
[1736836892806,2.6764,186.92,186.87,7.9267444]
[1736836893006,7.9267444,186.93,186.87,7.9267444]
[1736836893007,7.9267444,186.91,186.87,7.9267444]
[1736836893210,7.9267444,186.94,186.87,7.9267444]
[1736836893405,7.9267444,186.94,186.89,7.9267444]
[1736836895110,10.6028444,186.94,186.89,7.9267444]
[1736836895310,2.6761,186.94,186.89,7.9267444]
[1736836895709,10.6028444,186.94,186.89,7.9267444]
[1736836896211,2.6761,186.94,186.89,7.9267444]
[1736836896410,7.9267444,186.94,186.89,10.6035444]
[1736836896808,5.5,187.0,186.91,7.9267444]
[1736836897007,7.9267444,186.97,186.91,7.9267444]
[1736836897210,52.59844588,187.02,186.93,7.9267444]
[1736836897408,7.9267444,186.96,186.83,5.5]
[1736836897711,7.9267444,186.96,186.9,7.9267444]
[1736836897909,2.6758,186.96,186.82,28.87090887]
[1736836898116,2.6758,186.96,186.72,29.78758598]
[1736836898117,7.9267444,186.83,186.72,29.78758598]
[1736836898407,7.9267444,186.83,186.75,7.9267444]
[1736836898613,7.9267444,186.81,186.75,29.78758598]
[1736836899007,7.9267444,186.81,186.75,37.71433038]
[1736836899415,2.6778,186.82,186.73,2.6791]
[1736836900815,2.6778,186.82,186.74,2.6789]
[1736836901412,8.2176,186.84,186.76,2.6786]
[1736836902612,2.6776,186.84,186.75,12.39241598]
[1736836902822,2.6776,186.84,186.77,2.6785]
[1736836904818,12.39241598,186.85,186.75,15.07111598]
[1736836904819,2.6778,186.82,186.75,15.07111598]
[1736836905118,12.39241598,186.85,186.75,12.39241598]
[1736836905720,2.6778,186.82,186.75,15.07121598]
[1736836906018,12.39241598,186.85,186.75,15.07121598]
[1736836906319,12.39241598,186.85,186.75,12.39241598]
[1736836906518,2.6781,186.8,186.75,12.39241598]
[1736836906723,12.39241598,186.85,186.75,12.39241598]
[1736836907623,2.6779,186.81,186.73,2.6791]
[1736836907825,2.6779,186.81,186.72,12.39241598]
[1736836908521,2.6779,186.81,186.75,2.6787]
[1736836910223,2.6782,186.79,186.75,2.6787]
[1736836910613,2.6782,186.79,186.72,12.39241598]
[1736836910614,2.6782,186.79,186.74,2.6789]
[1736836911424,2.6782,186.79,186.75,2.6788]
[1736836913125,5.54,186.82,186.75,2.6788]
[1736836913323,2.6781,186.8,186.75,2.6788]
[1736836913826,5.54,186.82,186.75,2.6788]
[1736836914031,2.6782,186.79,186.75,2.6788]
[1736836914830,2.6781,186.8,186.75,2.6788]
[1736836915031,5.54,186.82,186.67,4.58771817]
[1736836915032,17.93241598,186.82,186.67,4.58771817]
[1736836915227,12.39241598,186.78,186.67,16.98013415]
[1736836916127,2.6789,186.74,186.69,2.6795]
[1736836916331,2.6789,186.74,186.67,16.98013415]
[1736836916627,2.6788,186.75,186.7,2.6794]
[1736836919440,10.61538821,186.75,186.7,2.6794]
[1736836921443,10.61538821,186.75,186.67,4.58771817]
[1736836921444,7.93658821,186.71,186.67,4.58771817]
[1736836921631,7.93658821,186.69,186.59,48.29499511]
[1736836921831,10.61638821,186.69,186.64,2.6803]
[1736836925441,10.61638821,186.69,186.63,7.93658821]
[1736836925638,7.93658821,186.67,186.59,45.11079511]
[1736836925945,7.93658821,186.67,186.6,7.93658821]
[1736836926943,7.93658821,186.67,186.62,7.93658821]
[1736836927144,10.61668821,186.67,186.62,10.61728821]
[1736836930637,10.61668821,186.67,186.63,2.6805]
[1736836930843,2.6801,186.67,186.63,2.6805]
[1736836931552,2.6801,186.67,186.62,2.6807]
[1736836931746,2.6802,186.66,186.62,10.61728821]
[1736836932450,2.68,186.67,186.62,10.61728821]
[1736836935144,9.58738821,186.69,186.64,7.93658821]
[1736836935349,2.6798,186.68,186.64,7.93658821]
[1736836938948,1.6508,186.69,186.65,2.6802]
[1736836939655,1.6508,186.69,186.59,45.11079511]
[1736836939850,1.6508,186.69,186.64,7.93658821]
[1736836939851,4.3305,186.69,186.64,7.93658821]
[1736836940959,4.3408,186.7,186.66,7.93658821]
[1736836941658,1.6613,186.7,186.68,7.93658821]
[1736836941855,1.5427,186.74,186.68,7.93658821]
[1736836943158,10.61568821,186.73,186.68,10.61628821]
[1736836943853,1.5427,186.74,186.68,7.93658821]
[1736836944060,4.2217,186.74,186.7,7.93658821]
[1736836944663,1.5427,186.74,186.7,10.61608821]
[1736836944856,4.3704,186.75,186.7,10.61608821]
[1736836945056,9.52718821,186.78,186.72,7.93658821]
[1736836946153,2.6787,186.76,186.64,9.38679541]
[1736836946456,2.6787,186.76,186.71,7.93658821]
[1736836947458,7.93658821,186.75,186.64,9.38679541]
[1736836947759,2.6792,186.73,186.68,7.93658821]
[1736836949360,7.93658821,186.75,186.68,7.93658821]
[1736836949561,2.6793,186.72,186.68,7.93658821]
[1736836949761,2.6793,186.72,186.67,2.6798]
[1736836949962,2.6793,186.72,186.68,7.93658821]
[1736836950162,2.6793,186.72,186.67,2.6798]
[1736836950362,2.6793,186.72,186.68,7.93658821]